bitfinex/quotes_SOLUSD_20260213
["timestamp","ask_amount","ask_price","bid_price","bid_amount"]
[1770977593539,1.22081982,80.119,80.099,12.48455036]
[1770977594034,11.00150521,80.11,80.098,59.96]
[1770977594215,11.00150521,80.11,80.088,12.48619811]
[1770977594621,9.78068539,80.12,80.085,1.09041082]
[1770977594918,31.19616283,80.139,80.091,1.09041082]
[1770977594919,12.47987619,80.129,80.091,1.09041082]
[1770977595321,12.47987619,80.129,80.09,9.78068539]
[1770977595322,1.27611159,80.189,80.12,19.56137078]
[1770977595517,1.27611159,80.179,80.14,9.78068539]
[1770977595931,1.27611159,80.169,80.138,60.12]
[1770977596538,9.78068539,80.17,80.08,47.38068539]
[1770977596539,1.27611159,80.147,80.1,9.78068539]
[1770977596736,1.27611159,80.139,80.101,60.12]
[1770977596930,9.78068539,80.13,80.101,60.12]
[1770977597332,9.78068539,80.12,80.101,60.12]
[1770977597936,1.27611159,80.129,80.102,12.48408279]
[1770977598742,52.74068539,80.16,80.102,12.48408279]
[1770977598743,1.27611159,80.143,80.102,43.69428977]
[1770977598943,9.78068539,80.14,80.11,9.78068539]
[1770977599241,1.27611159,80.143,80.111,60.16]
[1770977600044,1.27611159,80.143,80.112,43.68883562]
[1770977600341,1.27611159,80.143,80.112,103.86883562]
[1770977602455,1.27611159,80.143,80.112,72.66252446]
[1770977602824,1.27611159,80.139,80.112,72.66252446]
[1770977605952,9.78068539,80.18,80.131,1.18347467]
[1770977606180,9.78068539,80.18,80.141,1.18347467]
[1770977606335,9.78068539,80.18,80.142,61.48347467]
[1770977606731,12.47053835,80.189,80.151,1.18347467]
[1770977607345,12.47053835,80.189,80.152,13.6597697]
[1770977607740,1.22081982,80.179,80.152,13.6597697]
[1770977607943,1.22081982,80.189,80.153,1.18347467]
[1770977608643,5.36086188,80.235,80.152,43.66703262]
[1770977608644,31.15737723,80.238,80.181,1.18347467]
[1770977608848,9.88068539,80.22,80.191,1.18347467]
[1770977609032,0.1,80.22,80.2,9.78068539]
[1770977609233,0.1,80.22,80.192,1.18347467]
[1770977609428,9.78068539,80.2,80.16,12.4750499]
[1770977609756,9.78068539,80.18,80.16,12.4750499]
[1770977610049,0.1,80.22,80.161,1.18347467]
[1770977610245,9.78068539,80.2,80.171,1.18347467]
[1770977611056,1.18256537,80.189,80.169,60.36]
[1770977611232,9.78068539,80.18,80.156,12.47567015]
[1770977611828,1.18256537,80.179,80.153,60.36]
[1770977612041,1.18256537,80.179,67.075,0.1812702]
[1770977612042,10.96325076,80.17,80.144,1.2886387]
[1770977612350,1.18256537,80.169,80.144,13.76603763]
[1770977612655,1.18256537,80.169,80.144,1.2886387]
[1770977613051,1.18256537,80.169,80.145,13.76602344]
[1770977613252,1.18256537,80.178,80.146,1.2886387]
[1770977613443,9.78068539,80.17,80.146,1.2886387]
[1770977613644,10.96325076,80.17,80.146,1.2886387]
[1770977614041,23.43686074,80.17,80.146,1.2886387]
[1770977614531,23.43686074,80.17,80.134,60.38]
[1770977614532,1.18256537,80.169,80.138,13.76709915]
[1770977614731,49.87250522,80.205,80.138,13.76709915]
[1770977614732,12.4724048,80.177,80.141,1.2886387]
[1770977614952,9.78068539,80.17,80.141,1.2886387]
[1770977616154,9.78068539,80.17,80.142,1.30464219]
[1770977616354,12.47364941,80.169,80.142,1.30464219]
[1770977616743,9.78068539,80.17,80.142,1.30464219]
[1770977617144,22.25431044,80.17,80.142,1.30464219]
[1770977617549,1.18256537,80.177,80.142,1.30464219]
[1770977617747,9.78068539,80.17,80.142,1.30464219]
[1770977618549,9.78068539,80.17,80.144,1.30464219]
[1770977619647,11.07730833,80.17,80.144,1.30464219]
[1770977620046,1.29662294,80.169,80.144,1.30464219]
[1770977620450,1.29662294,80.159,80.134,60.38]
[1770977621961,9.78068539,80.15,80.134,60.38]
[1770977622260,1.29662294,80.149,80.123,12.48069336]
[1770977622464,9.78068539,80.14,80.123,12.48069336]
[1770977622655,9.78068539,80.14,80.1,9.78068539]
[1770977622656,9.78068539,80.13,80.115,1.30464219]
[1770977622863,9.78068539,80.13,80.108,1.30464219]
[1770977623754,9.78068539,80.12,80.108,1.30464219]
[1770977623955,9.78068539,80.13,80.108,1.30464219]
[1770977625652,9.78068539,80.13,80.11,1.30464219]
[1770977626273,13.7759635,80.133,80.11,1.30464219]
[1770977627854,9.78068539,80.14,80.112,1.30464219]
[1770977627855,1.29662294,80.14,80.112,1.30464219]
[1770977628057,11.07730833,80.14,80.112,1.30464219]
[1770977628578,1.29662294,80.139,80.112,1.30464219]
[1770977629265,1.29662294,80.129,80.102,1.30464219]
[1770977629470,9.78068539,80.12,80.095,13.78981604]
[1770977629672,1.29662294,80.123,80.096,1.30464219]
[1770977629980,9.78068539,80.12,80.096,1.30464219]
[1770977630271,9.78068539,80.12,80.097,13.78950429]
[1770977630474,9.78068539,80.12,80.098,1.30464219]
[1770977630863,9.78975824,80.12,80.098,1.30464219]
[1770977631192,1.29662294,80.134,80.1,9.78975824]
[1770977631380,9.78975824,80.14,80.111,1.26874262]
[1770977631672,1.29662294,80.139,80.111,1.26874262]
[1770977632257,1.29662294,80.139,80.112,12.48252446]
[1770977635870,9.78975824,80.14,80.111,1.26874262]
[1770977635871,1.29662294,80.137,80.111,1.26874262]
[1770977637054,9.78975824,80.14,80.104,1.29319249]
[1770977637055,1.29662294,80.135,80.104,1.29319249]
[1770977637254,1.29662294,80.129,80.104,1.29319249]
[1770977638683,1.29662294,80.129,80.105,12.48361525]
[1770977639569,1.29662294,80.129,80.105,13.78825744]
[1770977639878,1.29662294,80.129,80.105,12.48361525]
[1770977641279,1.29662294,80.129,80.102,1.31627984]
[1770977641872,9.78975824,80.2,80.111,1.32074012]
[1770977642073,9.78975824,80.15,80.121,1.32074012]
[1770977642277,1.29234551,80.149,80.121,1.32074012]
[1770977642979,1.29234551,80.139,80.108,60.34]
[1770977643188,9.78975824,80.12,80.097,1.32513915]
[1770977643373,9.78975824,80.13,80.1,9.78975824]
[1770977643681,1.29234551,80.138,80.101,1.32949145]
[1770977643885,1.29234551,80.119,80.094,1.32949145]
[1770977644080,1.29234551,80.119,80.091,43.70029091]
[1770977645568,1.29234551,80.119,80.091,45.03834738]
[1770977646069,1.29234551,80.117,80.089,12.48606401]
[1770977646269,1.29234551,80.109,80.089,12.48606401]
[1770977647391,1.29234551,80.109,80.085,1.34641258]
[1770977647888,9.78975824,80.12,80.085,1.34641258]
[1770977647889,1.29234551,80.12,80.085,1.34641258]
[1770977648083,2.23,100.0,80.084,43.70411067]
[1770977648084,9.78975824,80.17,80.111,1.35211301]
[1770977648285,9.78975824,80.16,80.131,1.35211301]
[1770977648786,43.64253026,80.197,80.131,1.35211301]
[1770977649083,9.78975824,80.17,80.131,1.35211301]
[1770977649274,12.47364941,80.169,80.141,1.35211301]
[1770977649870,12.47364941,80.169,80.132,12.47940897]
[1770977649871,12.46696254,80.212,80.151,1.35211301]
[1770977650086,9.78975824,80.2,80.161,1.35211301]
[1770977650264,1.29234551,80.199,80.161,1.35211301]
[1770977650468,1.29234551,80.199,80.132,106.07497627]
[1770977650469,9.78975824,80.24,80.15,9.78975824]
[1770977650666,9.78975824,80.24,80.132,111.43583815]
[1770977650667,9.78975824,80.24,80.171,1.35211301]
[1770977650863,9.78975824,80.2,80.171,1.35211301]
[1770977651284,9.78975824,80.21,80.173,1.35211301]
[1770977651475,12.46742884,80.209,80.18,9.78975824]
[1770977651683,12.46603006,80.218,80.181,1.35211301]
[1770977651874,42.76,80.217,80.181,1.35211301]
[1770977652079,9.78975824,80.19,80.161,1.35211301]
[1770977652285,42.78,80.189,80.152,1.35211301]
[1770977652595,1.29234551,80.187,80.152,1.35211301]
[1770977653475,1.29234551,80.186,80.154,1.35211301]
[1770977653777,1.29234551,80.184,80.154,1.35211301]
[1770977653983,1.29234551,80.184,80.16,9.78975824]
[1770977654502,1.29234551,80.195,80.17,9.78975824]
[1770977654696,42.74,80.183,80.17,9.78975824]
[1770977655193,42.74,80.183,80.161,1.35211301]
[1770977655389,42.74,80.182,80.161,1.35211301]
[1770977655779,1.29234551,80.203,80.171,1.35211301]
[1770977655979,42.74,80.202,80.181,1.35211301]
[1770977656294,42.74,80.201,80.181,1.35211301]
[1770977657295,1.29234551,80.208,80.171,1.35211301]
[1770977657590,42.76,80.2,80.171,1.35211301]
[1770977659200,42.76,80.2,80.18,9.78975824]
[1770977659691,31.26448123,80.22,80.181,1.35211301]
[1770977659692,1.29234551,80.219,80.181,1.35211301]
[1770977659994,1.29234551,80.217,80.181,1.35211301]
[1770977660704,1.29234551,80.209,80.181,1.35211301]
[1770977660886,12.46587466,80.219,80.172,12.47318265]
[1770977660887,1.29234551,80.199,80.172,12.47318265]
[1770977661275,1.29234551,80.199,80.173,1.35211301]
[1770977661575,42.76,80.198,80.173,1.35211301]
[1770977661794,44.05234551,80.198,80.173,1.35211301]
[1770977662097,1.29234551,80.197,80.173,1.35211301]
[1770977663418,42.74,80.196,80.174,12.4728715]
[1770977664410,1.29234551,80.195,80.174,12.4728715]
[1770977666913,1.29234551,80.228,80.181,1.35211301]
[1770977667096,1.29234551,80.219,80.175,1.35211301]
[1770977667301,22.04,80.221,80.193,1.35211301]
[1770977667617,1.29234551,80.218,80.193,1.35211301]
[1770977668109,1.29234551,80.218,80.19,9.78975824]
[1770977668891,1.29234551,80.216,80.19,9.78975824]
[1770977669302,1.29234551,80.216,80.183,12.47132671]
[1770977669507,12.46618547,80.217,80.183,12.47132671]
[1770977669508,1.29234551,80.209,80.183,12.47132671]
[1770977669797,9.78975824,80.21,80.18,9.78975824]
[1770977669798,1.29234551,80.207,80.18,9.78975824]
[1770977669996,42.82,80.206,80.182,1.35211301]
[1770977671512,42.82,80.205,80.184,1.32503307]
[1770977671718,42.82,80.204,80.184,1.32503307]
[1770977671898,1.34081762,80.199,80.165,31.18542223]
[1770977672102,1.34081762,80.197,80.166,12.4741162]
[1770977672295,42.84,80.196,80.166,12.4741162]
[1770977672495,1.34081762,80.195,80.166,13.79914927]
[1770977672691,1.34081762,80.189,80.162,12.47465107]
[1770977673499,1.34081762,80.187,80.162,12.47465107]
[1770977674000,42.84,80.186,80.162,12.47465107]
[1770977674213,44.18081762,80.186,80.162,12.47465107]
[1770977674901,1.34081762,80.186,80.165,1.32503307]
[1770977675424,1.39453156,80.206,80.18,9.78975824]
[1770977675602,42.82,80.205,80.18,9.78975824]
[1770977676221,44.21453156,80.205,80.18,9.78975824]
[1770977676612,1.39453156,80.204,80.18,9.78975824]
[1770977676798,42.84,80.203,80.181,1.46701429]
[1770977677004,1.39453156,80.212,80.19,9.78975824]
[1770977677317,1.39453156,80.21,80.182,1.46701429]
[1770977678418,1.39453156,80.208,80.182,1.46701429]
[1770977679006,1.39453156,80.206,80.18,9.78975824]
[1770977679212,42.84,80.205,80.182,1.46701429]
[1770977681247,42.86,80.204,80.182,1.46701429]
[1770977681401,1.39453157,80.19,80.16,9.78975824]
[1770977681601,9.78975824,80.19,80.157,12.47551679]
[1770977682122,42.88,80.189,80.16,9.78975824]
[1770977682326,42.88,80.189,80.16,11.25677253]
[1770977683214,12.47084938,80.187,80.16,11.25677253]
[1770977683615,1.39453156,80.185,80.16,11.25677253]
[1770977684123,1.39453156,80.185,80.146,31.19294906]
[1770977684124,1.39453156,80.179,80.15,9.78975824]
[1770977684421,1.39453156,80.177,80.141,1.46701429]
[1770977684722,1.39453156,80.159,80.127,1.46701429]
[1770977684919,1.39453156,80.159,80.126,12.48023778]
[1770977684920,1.39453156,80.157,80.131,1.46701429]
[1770977685121,42.94,80.156,80.131,1.46701429]
[1770977685423,42.92,80.155,80.131,1.46701429]
[1770977685607,12.47570517,80.156,80.131,1.46701429]
[1770977685806,42.92,80.155,80.131,1.46701429]
[1770977686004,13.87023673,80.156,80.131,1.46701429]
[1770977686208,42.92,80.154,80.131,1.46701429]
[1770977686511,42.92,80.153,80.131,1.46701429]
[1770977687326,42.94,80.152,80.131,1.46701429]
[1770977687706,1.39453156,80.151,80.13,9.78975824]
[1770977687928,1.39453156,80.151,80.093,4.61729252]
[1770977687929,42.94,80.15,80.12,9.78975824]
[1770977688135,1.39453156,80.149,80.12,9.78975824]
[1770977688304,31.18455408,80.168,80.122,1.46701429]
[1770977688502,1.39453156,80.166,80.14,9.78975824]
[1770977689227,1.39453156,80.168,80.14,11.25677253]
[1770977689407,13.86864776,80.166,80.14,23.73492997]
[1770977689611,1.39453156,80.165,80.14,13.94517173]
[1770977689816,1.39453156,80.165,80.14,23.73492997]
[1770977690008,1.39453156,80.163,80.14,23.73492997]
[1770977690329,1.39453156,80.163,80.133,1.46701429]
[1770977691810,1.39453156,80.161,80.133,1.46701429]
[1770977692027,1.39453156,80.176,80.141,1.46701429]
[1770977692327,1.39453156,80.174,80.141,1.46701429]
[1770977694909,4.61729252,80.196,80.12,9.77899145]
[1770977694910,1.39453156,80.239,80.168,4.61729252]
[1770977695114,49.82118152,80.288,80.2,9.77899145]
[1770977695115,1.39453156,80.219,80.2,9.77899145]
[1770977695830,1.39453156,80.219,80.192,1.46701429]
[1770977696419,44.49453156,80.219,80.192,1.46701429]
[1770977696632,43.1,80.219,80.192,1.46701429]
[1770977696931,1.39453156,80.218,80.192,1.46701429]
[1770977697319,1.39453156,80.218,80.193,13.93693061]
[1770977697736,1.39453156,80.218,80.194,1.46701429]
[1770977698029,0.1,80.22,80.2,9.77899145]
[1770977698235,0.1,80.22,80.201,1.46701429]
[1770977698410,0.1,80.23,80.211,1.46701429]
[1770977699233,0.1,80.23,80.22,9.77899145]
[1770977699423,0.1,80.23,80.211,1.46701429]
[1770977699424,1.49453156,80.23,80.211,12.46711797]
[1770977699718,0.1,80.23,80.212,1.46701429]
[1770977700319,0.1,80.23,80.211,12.46711797]
[1770977700320,1.39453156,80.255,80.221,1.46701429]
[1770977700518,1.39453156,80.255,80.231,1.46701429]
[1770977700519,1.54522513,80.254,80.231,1.46701429]
[1770977700719,1.54522513,80.254,80.221,1.43096332]
[1770977701014,1.54522513,80.249,80.22,9.77899145]
[1770977701214,1.54522513,80.249,80.221,12.46556387]
[1770977702347,1.54522513,80.247,80.213,13.89768068]
[1770977702516,1.54522513,80.245,80.213,13.89768068]
[1770977703044,12.46136975,80.248,80.21,9.77899145]
[1770977703045,1.54522513,80.239,80.21,9.77899145]
[1770977703822,1.54522513,80.237,80.21,9.77899145]
[1770977704347,1.54522513,80.237,80.2,9.77899145]
[1770977704540,1.54522513,80.235,80.2,22.2477566]
[1770977704845,1.54522513,80.235,80.201,1.43096332]
[1770977705629,1.54522513,80.233,80.203,1.43096332]
[1770977705823,1.54522513,80.233,80.21,9.77899145]
[1770977706248,1.54522513,80.233,80.203,1.43096332]
[1770977708161,1.54522513,80.233,80.211,1.43096332]
[1770977709734,4.09963556,80.24,80.211,1.43096332]
[1770977709735,12.46276748,80.239,80.211,1.43096332]
[1770977710138,1.54522513,80.238,80.211,1.43096332]
[1770977710339,1.54522513,80.238,80.21,4.09963556]
[1770977710340,12.46307813,80.237,80.221,1.43096332]
[1770977711146,14.00830326,80.237,80.211,1.43096332]
[1770977711446,1.54522513,80.236,80.211,1.43096332]
[1770977712757,1.54522513,80.234,80.211,1.43096332]
[1770977713457,1.54522513,80.229,80.204,1.43096332]
[1770977713756,1.54522513,80.229,80.21,4.09963556]
[1770977713962,12.46338879,80.235,80.211,1.43096332]
[1770977714855,12.46276748,80.239,80.211,13.89804413]
[1770977715153,31.15373424,80.248,80.211,13.89804413]
[1770977715154,1.54522513,80.279,80.23,4.09963556]
[1770977715355,1.54522513,80.279,80.231,1.43096332]
[1770977715544,1.54522513,80.269,80.231,1.43096332]
[1770977716449,1.54522513,80.259,80.231,1.43096332]
[1770977716831,1.54522513,80.259,80.221,1.43096332]
[1770977717034,1.54522513,80.259,80.22,4.09963556]
[1770977717035,1.54522513,80.259,80.23,5.53059888]
[1770977717253,1.54522513,80.259,80.231,1.43096332]
[1770977717635,1.54522513,80.269,80.241,1.43096332]
[1770977719360,1.54522513,80.259,80.237,12.46296806]
[1770977720261,1.54522513,80.259,80.24,4.09963556]
[1770977721158,1.54522513,80.259,80.238,1.43096332]
[1770977722351,1.54522513,80.259,80.238,13.89384822]
[1770977722767,1.54522513,80.259,80.238,12.4628849]
[1770977723540,4.09963556,80.3,80.251,1.43096332]
[1770977723768,4.09963556,80.3,80.269,1.43096332]
[1770977723943,4.09963556,80.31,80.271,1.43096332]
[1770977724144,4.09963556,80.31,80.236,4.61729252]
[1770977724145,4.09963556,80.31,80.247,1.43096332]
[1770977724362,4.09963556,80.27,80.247,1.43096332]
[1770977724549,4.09963556,80.26,80.199,1.43096332]
[1770977724751,4.09963556,80.26,80.23,4.09963556]
[1770977724947,4.09963556,80.26,80.221,1.43096332]
[1770977725461,0.9150197,80.257,80.223,1.43096332]
[1770977725665,12.45981708,80.258,80.231,1.43096332]
[1770977725968,5.01465526,80.27,80.231,1.43096332]
[1770977726157,0.9150197,80.269,80.241,1.43096332]
[1770977726763,0.91997959,80.249,80.219,1.43096332]
[1770977727858,43.60292736,80.27,80.241,1.43096332]
[1770977727859,9.75912177,80.27,80.241,1.43096332]
[1770977728166,0.92492316,80.276,80.25,1.43096332]
[1770977728359,12.45655775,80.279,80.241,1.43096332]
[1770977728360,10.68892116,80.27,80.241,1.43096332]
[1770977728763,0.92979939,80.269,80.241,1.43096332]
[1770977729572,12.45826481,80.268,80.241,1.43096332]
[1770977732557,43.22,80.267,80.241,1.43096332]
[1770977735255,12.45857523,80.266,80.241,1.43096332]
[1770977736854,44.19116587,80.267,80.243,1.50212289]
[1770977737173,56.64971059,80.267,80.243,1.50212289]
[1770977737752,12.4572339,80.275,80.244,12.46199092]
[1770977738068,0.97984331,80.273,80.245,1.50212289]
[1770977738274,0.97984331,80.269,80.245,1.50212289]
[1770977740053,13.44653274,80.268,80.245,1.50212289]
[1770977741479,12.45857523,80.266,80.245,1.50212289]
[1770977742177,0.99649845,80.27,80.247,1.50212289]
[1770977742374,1.00055337,80.268,80.239,1.50212289]
[1770977742754,1.00055337,80.268,80.231,1.50212289]
[1770977743677,9.75912177,80.27,80.233,1.50212289]
[1770977743678,1.00456556,80.266,80.233,1.50212289]
[1770977744171,1.58080226,80.259,80.22,9.75912177]
[1770977744363,1.58080226,80.239,80.219,12.46579353]
[1770977744672,9.75912177,80.24,80.2,9.75912177]
[1770977744673,1.58080226,80.237,80.2,9.75912177]
[1770977745460,105.89657018,80.267,80.198,12.46913888]
[1770977745461,1.58080226,80.229,80.198,12.46913888]
[1770977745655,1.58080226,80.226,80.191,12.47022733]
[1770977745974,12.4646316,80.227,80.191,12.47022733]
[1770977745975,1.58080226,80.219,80.191,12.47022733]
[1770977746168,1.58080226,80.219,80.192,1.50212289]
[1770977746473,43.3,80.22,80.201,1.50212289]
[1770977749360,1.58080226,80.272,80.211,1.50212289]
[1770977749561,1.58080226,80.254,80.221,1.50212289]
[1770977749761,4.100592,80.25,80.221,1.50212289]
[1770977749966,1.58080226,80.249,80.221,1.50212289]
[1770977750181,1.58080226,80.247,80.221,1.50212289]
[1770977750475,1.58080226,80.245,80.221,1.50212289]
[1770977752173,1.58080226,80.245,80.223,1.50212289]
[1770977753083,43.34,80.244,80.223,1.50212289]
[1770977754083,1.58080226,80.263,80.233,1.50212289]
[1770977754272,9.75855665,80.27,80.233,1.50212289]
[1770977754273,1.58080226,80.261,80.233,1.50212289]
[1770977754584,1.58080226,80.261,80.2,9.75855665]
[1770977754585,49.8088585,80.307,80.241,1.50212289]
[1770977754788,43.38,80.306,80.251,1.50212289]
[1770977755091,9.75855665,80.28,80.251,1.50212289]
[1770977755467,43.38,80.279,80.251,1.50212289]
[1770977755674,43.38,80.279,80.241,1.50212289]
[1770977755877,9.75855665,80.27,80.234,1.50212289]
[1770977756274,9.75855665,80.27,80.236,1.50212289]
[1770977756275,12.4581096,80.269,80.236,1.50212289]
[1770977756481,55.8381096,80.269,80.236,1.50212289]
[1770977756789,55.17053715,80.306,80.235,12.46338879]
[1770977756790,9.75855665,80.32,80.261,1.68133699]
[1770977757169,9.75855665,80.29,80.261,1.68133699]
[1770977757374,43.38,80.289,80.261,1.68133699]
[1770977757872,43.38,80.292,80.261,1.68133699]
[1770977758388,43.38,80.306,80.281,1.68133699]
[1770977759276,43.38,80.305,80.281,1.68133699]
[1770977759587,43.38,80.305,80.263,1.68133699]
[1770977759793,9.75855665,80.29,80.263,1.68133699]
[1770977760286,12.45500628,80.289,80.263,1.68133699]
[1770977760498,0.02493835,80.288,80.256,12.46012628]
[1770977760696,0.03103378,80.279,80.25,9.75855665]
[1770977760868,0.03103378,80.277,80.25,9.75855665]
[1770977761572,0.03699992,80.287,80.26,9.75855665]
[1770977761791,0.03699992,80.285,80.26,11.43989364]
[1770977761968,0.03699992,80.285,80.24,9.75855665]
[1770977761969,43.4,80.285,80.271,1.68133699]
[1770977762168,9.79555657,80.3,80.271,1.56565691]
[1770977762397,43.4,80.299,80.272,12.45764401]
[1770977762692,43.4,80.299,80.273,1.56565691]
[1770977762870,12.4536103,80.298,80.273,1.56565691]
[1770977763190,43.42,80.304,80.28,9.75855665]
[1770977763391,44.98886035,80.304,80.28,9.75855665]
[1770977763799,1.56886035,80.309,80.28,9.75855665]
[1770977764187,1.56886035,80.307,80.28,9.75855665]
[1770977764694,1.56886035,80.307,80.281,12.45624743]
[1770977764993,1.56886035,80.305,80.277,12.45678309]
[1770977765191,1.56886035,80.299,80.277,14.02244]
[1770977765495,1.56886035,80.299,80.278,1.56565691]
[1770977766390,31.12601157,80.319,80.263,31.14737546]
[1770977766391,1.56886035,80.297,80.272,12.45759637]
[1770977766573,1.56886035,80.295,80.272,12.45759637]
[1770977766776,1.56886035,80.295,80.272,14.02325328]
[1770977767191,1.56886035,80.295,80.272,1.56565691]
[1770977767898,1.56886035,80.295,80.25,58.66]
[1770977767899,1.56886035,80.295,80.274,1.56565691]
[1770977768806,45.02886035,80.295,80.274,1.56565691]
[1770977769171,9.75855665,80.3,80.276,1.56565691]
[1770977769377,45.02886035,80.299,80.276,1.56565691]
[1770977769594,1.56886035,80.298,80.276,1.56565691]
[1770977770792,1.56886035,80.296,80.271,1.56565691]
[1770977771096,1.56886035,80.296,80.275,1.56565691]
[1770977771601,1.56886035,80.296,80.276,12.45702326]
[1770977772789,1.56886035,80.294,80.27,9.75855665]
[1770977772993,1.56886035,80.289,80.261,1.56565691]
[1770977773287,4.09467954,80.29,80.252,1.56565691]
[1770977773495,43.54,80.288,80.254,1.56565691]
[1770977773690,43.54,80.288,80.226,108.37907888]
[1770977773691,4.09467954,80.28,80.241,1.56565691]
[1770977773999,43.56,80.279,80.242,1.56565691]
[1770977774294,43.56,80.278,80.242,1.56565691]
[1770977774492,4.09467954,80.28,80.242,1.56565691]
[1770977774797,17.42,80.279,80.242,1.56565691]
[1770977775206,0.37607521,80.276,80.244,1.56565691]
[1770977775407,0.38351134,80.274,80.244,1.56565691]
[1770977775707,0.38351134,80.295,80.251,1.56565691]
[1770977775884,4.09467954,80.29,80.261,1.56565691]
[1770977776085,43.52,80.289,80.261,1.56565691]
[1770977776792,43.54,80.288,80.261,1.56565691]
[1770977777807,43.54,80.288,80.262,43.60718646]
[1770977777991,43.54,80.288,80.263,1.56565691]
[1770977778190,0.38351134,80.294,80.263,1.56565691]
[1770977778404,43.52,80.293,80.263,1.56565691]
[1770977778825,43.92543025,80.293,80.263,1.56565691]
[1770977779017,0.40543025,80.292,80.265,1.56565691]
[1770977779209,0.40543025,80.289,80.265,1.56565691]
[1770977779698,0.40543025,80.289,80.259,12.4596181]
[1770977779885,0.41252602,80.269,80.243,12.46214623]
[1770977780091,4.09467954,80.27,80.243,12.46214623]
[1770977780092,0.41252602,80.267,80.243,12.46214623]
[1770977780395,1.56886035,80.249,80.19,4.09467954]
[1770977780586,1.56886035,80.239,80.21,4.09467954]
[1770977780796,43.56,80.238,80.22,4.09467954]
[1770977781000,1.56886035,80.257,80.23,9.7592512]
[1770977781399,1.56886035,80.255,80.23,9.7592512]
[1770977781789,1.56886035,80.255,80.207,43.63708902]
[1770977781790,1.56886035,80.304,80.24,19.5185024]
[1770977781986,1.56886035,80.299,80.226,4.61729252]
[1770977782221,9.7592512,80.27,80.24,9.7592512]
[1770977782505,1.56886035,80.269,80.241,1.56565691]
[1770977783316,1.56886035,80.268,80.241,1.56565691]
[1770977783492,12.45820515,80.269,80.213,1.56565691]
[1770977783493,1.56886035,80.249,80.213,1.56565691]
[1770977783690,1.56886035,80.247,80.213,1.56565691]
[1770977783995,9.7592512,80.24,80.213,1.56565691]
[1770977784808,1.56886035,80.239,80.213,1.56565691]
[1770977785200,1.56886035,80.237,80.205,1.56565691]
[1770977785400,1.56886035,80.229,80.201,12.46867246]
[1770977785602,1.56886035,80.229,80.201,1.56565691]
[1770977785902,43.56,80.228,80.201,1.56565691]
[1770977786297,43.56,80.227,80.201,1.56565691]
[1770977786706,9.7592512,80.24,80.201,1.56565691]
[1770977786896,43.56,80.239,80.201,1.56565691]
[1770977787096,1.56886035,80.238,80.201,1.56565691]
[1770977787297,9.7592512,80.24,80.192,1.56565691]
[1770977787298,1.56886035,80.219,80.192,1.56565691]
[1770977787496,9.7592512,80.21,80.182,1.56565691]
[1770977787713,54.90811155,80.21,80.182,1.56565691]
[1770977787918,11.32811155,80.21,80.182,1.56565691]
[1770977788219,43.58,80.209,80.182,1.56565691]
[1770977789297,43.56,80.211,80.184,1.56565691]
[1770977789605,1.56886035,80.21,80.184,1.56565691]
[1770977790318,43.58,80.209,80.184,1.56565691]
[1770977790617,43.58,80.211,80.184,1.56565691]
[1770977790826,1.69266219,80.21,80.184,1.56565691]
[1770977791196,43.58,80.211,80.192,12.47007182]
[1770977791395,43.58,80.211,80.193,1.64839169]
[1770977791820,1.69266219,80.225,80.2,9.7592512]
[1770977791999,1.69266219,80.225,80.201,1.64839169]
[1770977792200,43.6,80.224,80.201,1.64839169]
[1770977792400,1.69266219,80.219,80.193,1.64839169]
[1770977792616,43.6,80.218,80.2,9.7592512]
[1770977792822,1.69266219,80.226,80.201,1.64839169]
[1770977793422,43.6,80.225,80.203,1.64839169]
[1770977793604,43.6,80.227,80.211,1.64839169]
[1770977795423,43.6,80.227,80.212,12.46696254]
[1770977796433,12.46314664,80.237,80.212,12.46696254]
[1770977796619,43.6,80.236,80.212,12.46696254]
[1770977796813,43.6,80.235,80.212,12.46696254]
[1770977797015,1.67157907,80.234,80.208,12.46750927]
[1770977797215,1.67157907,80.234,80.205,1.71490444]
[1770977797728,1.67157907,80.234,80.2,9.7592512]
[1770977797729,1.67157907,80.234,80.211,1.71490444]
[1770977799012,49.81050122,80.305,80.221,1.71490444]
[1770977799013,9.7592512,80.27,80.221,1.71490444]
[1770977799229,43.57515468,80.321,80.261,1.71490444]
[1770977799417,9.7592512,80.3,80.261,1.71490444]
[1770977799623,9.7592512,80.29,80.251,1.71490444]
[1770977799829,9.7592512,80.27,80.24,1.71490444]
[1770977800046,9.7592512,80.27,80.212,43.63436891]
[1770977800047,9.7592512,80.26,80.231,1.71490444]
[1770977800212,17.44,80.259,80.231,1.71490444]
[1770977800914,17.44,80.259,80.232,12.46385482]
[1770977801131,17.44,80.259,80.233,1.71490444]
[1770977801532,17.78119297,80.259,80.233,1.71490444]
[1770977802109,9.7592512,80.28,80.251,1.71490444]
[1770977802409,43.6,80.267,80.251,1.71490444]
[1770977803913,43.95591417,80.267,80.245,12.46177957]